[Event "Titled Tuesday Blitz March 29 Late 2022"]
[White "Bachmann, Axel"]
[Black "Tiarks, Jann-Christian"]
[WhiteFideId "3700488"]
[BlackFideId "12951595"]
[WhiteElo "2587"]
[BlackElo "2176"]
[Result "1/2-1/2"]
[Round "06"]
[TimeControl "180+1"]
[Date "2022.03.30"]
[WhiteClock "0:00:05"]
[BlackClock "0:00:07"]

1. d4 {[%clk 0:03:00]}  d5 {[%clk 0:02:58]} 2. Nf3 {[%clk 0:03:00]}  e6 {[%clk 0:02:58]} 3. c4 {[%clk 0:03:00]}  c6 {[%clk 0:02:59]} 4. g3 {[%clk 0:03:00]}  dxc4 {[%clk 0:02:59]} 5. Bg2 {[%clk 0:03:00]}  b5 {[%clk 0:02:58]} 6. O-O {[%clk 0:03:00]}  Bb7 {[%clk 0:02:59]} 7. b3 {[%clk 0:03:00]}  cxb3 {[%clk 0:02:57]} 8. Qxb3 {[%clk 0:03:00]}  Nf6 {[%clk 0:02:53]} 9. Nc3 {[%clk 0:02:44]}  Be7 {[%clk 0:02:47]} 10. Rd1 {[%clk 0:02:39]}  O-O {[%clk 0:02:39]} 11. Ne5 {[%clk 0:02:37]}  a6 {[%clk 0:02:36]} 12. Ne4 {[%clk 0:02:33]}  Nxe4 {[%clk 0:02:31]} 13. Bxe4 {[%clk 0:02:31]}  Nd7 {[%clk 0:02:30]} 14. Nxc6 {[%clk 0:02:24]}  Bxc6 {[%clk 0:02:22]} 15. Bxc6 {[%clk 0:02:25]}  Rc8 {[%clk 0:02:22]} 16. Bb7 {[%clk 0:02:23]}  Rb8 {[%clk 0:02:20]} 17. Bf3 {[%clk 0:02:08]}  Nb6 {[%clk 0:02:17]} 18. Bf4 {[%clk 0:01:56]}  Bd6 {[%clk 0:02:16]} 19. Bd2 {[%clk 0:01:45]}  Nc4 {[%clk 0:02:13]} 20. Be1 {[%clk 0:01:44]}  Qf6 {[%clk 0:02:06]} 21. a4 {[%clk 0:01:39]}  Rfc8 {[%clk 0:02:03]} 22. axb5 {[%clk 0:01:38]}  axb5 {[%clk 0:02:00]} 23. Ra7 {[%clk 0:01:34]}  Bc7 {[%clk 0:01:40]} 24. Bb7 {[%clk 0:01:12]}  Bb6 {[%clk 0:01:35]} 25. Bxc8 {[%clk 0:01:05]}  Bxa7 {[%clk 0:01:34]} 26. Ba6 {[%clk 0:00:59]}  Bxd4 {[%clk 0:01:29]} 27. e3 {[%clk 0:00:42]}  Ba7 {[%clk 0:01:22]} 28. Bxb5 {[%clk 0:00:37]}  Ne5 {[%clk 0:01:16]} 29. Qa4 {[%clk 0:00:28]}  h5 {[%clk 0:01:07]} 30. Qxa7 {[%clk 0:00:20]}  Nf3+ {[%clk 0:01:02]} 31. Kf1 {[%clk 0:00:13]}  Rxb5 {[%clk 0:01:01]} 32. Qa8+ {[%clk 0:00:13]}  Kh7 {[%clk 0:01:00]} 33. Qe4+ {[%clk 0:00:10]}  g6 {[%clk 0:00:58]} 34. Bc3 {[%clk 0:00:07]}  Nxh2+ {[%clk 0:00:53]} 35. Kg2 {[%clk 0:00:07]}  Qxc3 {[%clk 0:00:53]} 36. Kxh2 {[%clk 0:00:06]}  Rb2 {[%clk 0:00:46]} 37. Qf3 {[%clk 0:00:03]}  Kg7 {[%clk 0:00:44]} 38. Rd7 {[%clk 0:00:03]}  Qf6 {[%clk 0:00:44]} 39. Qxf6+ {[%clk 0:00:02]}  Kxf6 {[%clk 0:00:45]} 40. Kg2 {[%clk 0:00:03]}  Ra2 {[%clk 0:00:43]} 41. Rd4 {[%clk 0:00:03]}  Ra6 {[%clk 0:00:41]} 42. Rf4+ {[%clk 0:00:04]}  Kg7 {[%clk 0:00:40]} 43. Rb4 {[%clk 0:00:04]}  g5 {[%clk 0:00:41]} 44. Rb5 {[%clk 0:00:04]}  Kg6 {[%clk 0:00:41]} 45. Rb4 {[%clk 0:00:04]}  f5 {[%clk 0:00:41]} 46. Rc4 {[%clk 0:00:05]}  Kf6 {[%clk 0:00:41]} 47. Rb4 {[%clk 0:00:05]}  Ra2 {[%clk 0:00:40]} 48. Rc4 {[%clk 0:00:05]}  Ra5 {[%clk 0:00:37]} 49. Rb4 {[%clk 0:00:06]}  Re5 {[%clk 0:00:38]} 50. Rc4 {[%clk 0:00:06]}  Re4 {[%clk 0:00:39]} 51. Rc5 {[%clk 0:00:02]}  h4 {[%clk 0:00:38]} 52. Kf3 {[%clk 0:00:02]}  h3 {[%clk 0:00:35]} 53. Rc1 {[%clk 0:00:02]}  Rb4 {[%clk 0:00:32]} 54. Rh1 {[%clk 0:00:01]}  Rb2 {[%clk 0:00:31]} 55. g4 {[%clk 0:00:01]}  fxg4+ {[%clk 0:00:29]} 56. Kxg4 {[%clk 0:00:01]}  Rxf2 {[%clk 0:00:29]} 57. Rxh3 {[%clk 0:00:01]}  Rg2+ {[%clk 0:00:26]} 58. Kh5 {[%clk 0:00:02]}  Kf5 {[%clk 0:00:23]} 59. Rh1 {[%clk 0:00:02]}  Ke4 {[%clk 0:00:23]} 60. Kg6 {[%clk 0:00:02]}  e5 {[%clk 0:00:22]} 61. Re1 {[%clk 0:00:03]}  Rg3 {[%clk 0:00:21]} 62. Kh5 {[%clk 0:00:02]}  Rxe3 {[%clk 0:00:20]} 63. Rg1 {[%clk 0:00:03]}  Kf4 {[%clk 0:00:18]} 64. Rg4+ {[%clk 0:00:03]}  Kf3 {[%clk 0:00:16]} 65. Rxg5 {[%clk 0:00:03]}  e4 {[%clk 0:00:15]} 66. Kh4 {[%clk 0:00:03]}  Ke2 {[%clk 0:00:15]} 67. Kg4 {[%clk 0:00:02]}  Rf3 {[%clk 0:00:15]} 68. Re5 {[%clk 0:00:02]}  Ke3 {[%clk 0:00:14]} 69. Ra5 {[%clk 0:00:03]}  Rf1 {[%clk 0:00:12]} 70. Ra3+ {[%clk 0:00:02]}  Kd2 {[%clk 0:00:12]} 71. Ra2+ {[%clk 0:00:02]}  Kc3 {[%clk 0:00:12]} 72. Ra3+ {[%clk 0:00:03]}  Kb4 {[%clk 0:00:12]} 73. Re3 {[%clk 0:00:02]}  Rg1+ {[%clk 0:00:09]} 74. Kf4 {[%clk 0:00:03]}  Rf1+ {[%clk 0:00:08]} 75. Kxe4 {[%clk 0:00:03]}  Rf8 {[%clk 0:00:08]} 76. Re2 {[%clk 0:00:04]}  Re8+ {[%clk 0:00:06]} 77. Kd3 {[%clk 0:00:04]}  Rxe2 {[%clk 0:00:07]} 78. Kxe2 {[%clk 0:00:05]} 1/2-1/2


[Site "https://www.chess.com"]

[Event "Titled Tuesday Blitz March 29 Late 2022"]
[White "Boyer, Mahel"]
[Black "Bluebaum, Matthias"]
[WhiteFideId "45102422"]
[BlackFideId "24651516"]
[WhiteElo "2328"]
[BlackElo "2550"]
[Result "0-1"]
[Round "06"]
[TimeControl "180+1"]
[Date "2022.03.29"]
[WhiteClock "0:00:20"]
[BlackClock "0:00:48"]

1. e4 {[%clk 0:02:53]}  c6 {[%clk 0:03:00]} 2. c4 {[%clk 0:02:52]}  d5 {[%clk 0:03:01]} 3. cxd5 {[%clk 0:02:53]}  cxd5 {[%clk 0:03:02]} 4. exd5 {[%clk 0:02:54]}  Nf6 {[%clk 0:03:02]} 5. Nc3 {[%clk 0:02:55]}  Nxd5 {[%clk 0:03:02]} 6. Nf3 {[%clk 0:02:55]}  Nc6 {[%clk 0:03:02]} 7. Bb5 {[%clk 0:02:56]}  e6 {[%clk 0:02:57]} 8. O-O {[%clk 0:02:55]}  Be7 {[%clk 0:02:56]} 9. d4 {[%clk 0:02:55]}  O-O {[%clk 0:02:57]} 10. Re1 {[%clk 0:02:55]}  Bd7 {[%clk 0:02:48]} 11. Nxd5 {[%clk 0:02:54]}  exd5 {[%clk 0:02:49]} 12. h3 {[%clk 0:02:55]}  Bf6 {[%clk 0:02:48]} 13. Bf4 {[%clk 0:02:55]}  Qb6 {[%clk 0:02:37]} 14. Bxc6 {[%clk 0:02:30]}  Bxc6 {[%clk 0:02:37]} 15. Qd2 {[%clk 0:02:28]}  Rfe8 {[%clk 0:02:35]} 16. Bg5 {[%clk 0:01:51]}  Bxg5 {[%clk 0:02:32]} 17. Nxg5 {[%clk 0:01:51]}  f6 {[%clk 0:02:28]} 18. Nf3 {[%clk 0:01:50]}  Re4 {[%clk 0:02:29]} 19. Re3 {[%clk 0:01:45]}  Rxe3 {[%clk 0:02:25]} 20. fxe3 {[%clk 0:01:35]}  Re8 {[%clk 0:02:24]} 21. Rc1 {[%clk 0:01:34]}  Qc7 {[%clk 0:02:14]} 22. Kf2 {[%clk 0:01:32]}  Qd6 {[%clk 0:02:10]} 23. b4 {[%clk 0:01:30]}  Bb5 {[%clk 0:02:07]} 24. Qc3 {[%clk 0:01:26]}  Bc4 {[%clk 0:02:06]} 25. Nd2 {[%clk 0:01:26]}  b5 {[%clk 0:02:03]} 26. a4 {[%clk 0:01:26]}  a6 {[%clk 0:01:47]} 27. axb5 {[%clk 0:01:22]}  axb5 {[%clk 0:01:48]} 28. Ra1 {[%clk 0:01:22]}  Qe6 {[%clk 0:01:47]} 29. Ra7 {[%clk 0:01:12]}  Qf5+ {[%clk 0:01:47]} 30. Nf3 {[%clk 0:01:05]}  h5 {[%clk 0:01:48]} 31. Qa3 {[%clk 0:00:32]}  Qc2+ {[%clk 0:01:37]} 32. Kg1 {[%clk 0:00:31]}  Kh7 {[%clk 0:01:23]} 33. Rc7 {[%clk 0:00:25]}  Qg6 {[%clk 0:01:23]} 34. Kf2 {[%clk 0:00:23]}  Bd3 {[%clk 0:01:07]} 35. Qa7 {[%clk 0:00:23]}  Be4 {[%clk 0:01:06]} 36. Re7 {[%clk 0:00:21]}  Rc8 {[%clk 0:01:01]} 37. Rc7 {[%clk 0:00:21]}  Re8 {[%clk 0:00:48]} 38. Re7 {[%clk 0:00:20]}  Bxf3 {[%clk 0:00:49]} 39. Rxe8 {[%clk 0:00:20]}  Qxg2+ {[%clk 0:00:48]} 0-1


[Site "https://www.chess.com"]

[Event "Titled Tuesday Blitz March 29 Late 2022"]
[White "Bryakin, Mikhail"]
[Black "Rosen, Eric"]
[WhiteFideId "4165314"]
[BlackFideId "2032562"]
[WhiteElo "2417"]
[BlackElo "2362"]
[Result "1-0"]
[Round "06"]
[TimeControl "180+1"]
[Date "2022.03.30"]
[WhiteClock "0:00:04"]
[BlackClock "0:00:01"]

1. e4 {[%clk 0:02:59]}  e5 {[%clk 0:02:57]} 2. d4 {[%clk 0:02:58]}  exd4 {[%clk 0:02:57]} 3. Qxd4 {[%clk 0:02:59]}  Nc6 {[%clk 0:02:57]} 4. Qd3 {[%clk 0:03:00]}  Nf6 {[%clk 0:02:56]} 5. Nc3 {[%clk 0:03:00]}  Bb4 {[%clk 0:02:54]} 6. Bd2 {[%clk 0:02:59]}  O-O {[%clk 0:02:50]} 7. O-O-O {[%clk 0:02:59]}  Re8 {[%clk 0:02:49]} 8. f3 {[%clk 0:02:50]}  d6 {[%clk 0:02:46]} 9. a3 {[%clk 0:02:50]}  a5 {[%clk 0:02:46]} 10. axb4 {[%clk 0:02:48]}  axb4 {[%clk 0:02:47]} 11. Nb1 {[%clk 0:02:48]}  Ra1 {[%clk 0:02:46]} 12. Bg5 {[%clk 0:02:38]}  Be6 {[%clk 0:02:44]} 13. c4 {[%clk 0:02:20]}  h6 {[%clk 0:02:11]} 14. Bxf6 {[%clk 0:02:14]}  Qxf6 {[%clk 0:02:10]} 15. Ne2 {[%clk 0:02:13]}  Ne5 {[%clk 0:02:03]} 16. Qd4 {[%clk 0:02:12]}  Bxc4 {[%clk 0:01:45]} 17. b3 {[%clk 0:02:04]}  Bxb3 {[%clk 0:01:39]} 18. Qxa1 {[%clk 0:02:04]}  Nd3+ {[%clk 0:01:39]} 19. Rxd3 {[%clk 0:02:05]}  Qxa1 {[%clk 0:01:38]} 20. Rxb3 {[%clk 0:02:05]}  c5 {[%clk 0:01:37]} 21. Nf4 {[%clk 0:02:00]}  Ra8 {[%clk 0:01:14]} 22. Bc4 {[%clk 0:01:51]}  Ra2 {[%clk 0:00:57]} 23. Rd1 {[%clk 0:01:44]}  Qe5 {[%clk 0:00:46]} 24. g3 {[%clk 0:01:33]}  Rxh2 {[%clk 0:00:46]} 25. Rd5 {[%clk 0:01:13]}  Qa1 {[%clk 0:00:40]} 26. Rxd6 {[%clk 0:01:06]}  Qa2 {[%clk 0:00:37]} 27. Rd2 {[%clk 0:00:52]}  Rh1+ {[%clk 0:00:35]} 28. Rd1 {[%clk 0:00:53]}  Rh2 {[%clk 0:00:36]} 29. Rd2 {[%clk 0:00:51]}  Rh1+ {[%clk 0:00:36]} 30. Rd1 {[%clk 0:00:51]}  Rxd1+ {[%clk 0:00:20]} 31. Kxd1 {[%clk 0:00:43]}  b5 {[%clk 0:00:20]} 32. Bd5 {[%clk 0:00:40]}  Qf2 {[%clk 0:00:15]} 33. Ne2 {[%clk 0:00:39]}  h5 {[%clk 0:00:08]} 34. f4 {[%clk 0:00:38]}  Kf8 {[%clk 0:00:07]} 35. Kd2 {[%clk 0:00:37]}  f6 {[%clk 0:00:07]} 36. e5 {[%clk 0:00:33]}  Ke7 {[%clk 0:00:04]} 37. e6 {[%clk 0:00:29]}  f5 {[%clk 0:00:04]} 38. Rb2 {[%clk 0:00:19]}  Qf1 {[%clk 0:00:02]} 39. Rb3 {[%clk 0:00:19]}  g6 {[%clk 0:00:02]} 40. Rb2 {[%clk 0:00:13]}  Qf2 {[%clk 0:00:02]} 41. Ra2 {[%clk 0:00:13]}  c4 {[%clk 0:00:01]} 42. Ra6 {[%clk 0:00:05]}  c3+ {[%clk 0:00:01]} 43. Kd3 {[%clk 0:00:05]}  Qc5 {[%clk 0:00:01]} 44. Nbxc3 {[%clk 0:00:05]}  bxc3 {[%clk 0:00:01]} 45. Nxc3 {[%clk 0:00:06]}  b4 {[%clk 0:00:01]} 46. Rc6 {[%clk 0:00:07]}  Qf2 {[%clk 0:00:01]} 47. Ne2 {[%clk 0:00:04]} 1-0


[Site "https://www.chess.com"]

[Event "Titled Tuesday Blitz March 29 Late 2022"]
[White "Burke, Paul"]
[Black "Brizzi, Milagros Tatiana"]
[WhiteFideId "2605767"]
[BlackFideId "128350"]
[WhiteElo "1862"]
[BlackElo "1844"]
[Result "1-0"]
[Round "06"]
[TimeControl "180+1"]
[Date "2022.03.30"]
[WhiteClock "0:02:36"]
[BlackClock "0:02:11"]

1. e4 {[%clk 0:03:00]}  c6 {[%clk 0:02:59]} 2. d4 {[%clk 0:02:59]}  d5 {[%clk 0:03:00]} 3. Nc3 {[%clk 0:02:59]}  dxe4 {[%clk 0:02:55]} 4. f3 {[%clk 0:02:59]}  exf3 {[%clk 0:02:47]} 5. Nxf3 {[%clk 0:02:59]}  Nf6 {[%clk 0:02:46]} 6. Bc4 {[%clk 0:02:59]}  Bg4 {[%clk 0:02:44]} 7. Bxf7+ {[%clk 0:02:58]}  Kxf7 {[%clk 0:02:42]} 8. Ne5+ {[%clk 0:02:58]}  Ke8 {[%clk 0:02:42]} 9. Nxg4 {[%clk 0:02:58]}  g6 {[%clk 0:02:37]} 10. Nxf6+ {[%clk 0:02:57]}  exf6 {[%clk 0:02:36]} 11. O-O {[%clk 0:02:57]}  Be7 {[%clk 0:02:35]} 12. Bh6 {[%clk 0:02:51]}  Nd7 {[%clk 0:02:32]} 13. d5 {[%clk 0:02:50]}  Qb6+ {[%clk 0:02:26]} 14. Kh1 {[%clk 0:02:48]}  Kf7 {[%clk 0:02:16]} 15. Qe2 {[%clk 0:02:37]}  Rhe8 {[%clk 0:02:11]} 16. Qe6# {[%clk 0:02:36]} 1-0


[Site "https://www.chess.com"]

[Event "Titled Tuesday Blitz March 29 Late 2022"]
[White "Cagara, Paulina"]
[Black "Storey, Charles H"]
[WhiteFideId "1124870"]
[BlackFideId "406686"]
[WhiteElo "1780"]
[BlackElo "2263"]
[Result "0-1"]
[Round "06"]
[TimeControl "180+1"]
[Date "2022.03.30"]
[WhiteClock "0:01:49"]
[BlackClock "0:01:34"]

1. e4 {[%clk 0:03:00]}  c6 {[%clk 0:02:06]} 2. d4 {[%clk 0:02:59]}  d5 {[%clk 0:02:06]} 3. exd5 {[%clk 0:02:59]}  cxd5 {[%clk 0:02:06]} 4. Bd3 {[%clk 0:02:59]}  Nf6 {[%clk 0:02:05]} 5. h3 {[%clk 0:02:58]}  Nc6 {[%clk 0:02:06]} 6. c3 {[%clk 0:02:58]}  g6 {[%clk 0:02:05]} 7. Nf3 {[%clk 0:02:57]}  Bg7 {[%clk 0:02:05]} 8. O-O {[%clk 0:02:57]}  O-O {[%clk 0:02:04]} 9. Bf4 {[%clk 0:02:56]}  Bf5 {[%clk 0:02:04]} 10. Bxf5 {[%clk 0:02:55]}  gxf5 {[%clk 0:02:05]} 11. Qd3 {[%clk 0:02:54]}  e6 {[%clk 0:02:05]} 12. Nbd2 {[%clk 0:02:52]}  Ne4 {[%clk 0:02:05]} 13. Rfe1 {[%clk 0:02:46]}  Kh8 {[%clk 0:02:02]} 14. Ne5 {[%clk 0:02:45]}  Nxe5 {[%clk 0:02:01]} 15. Bxe5 {[%clk 0:02:45]}  Bxe5 {[%clk 0:02:00]} 16. dxe5 {[%clk 0:02:45]}  Rg8 {[%clk 0:01:56]} 17. Kh2 {[%clk 0:02:33]}  Qg5 {[%clk 0:01:53]} 18. Rg1 {[%clk 0:02:12]}  Qxd2 {[%clk 0:01:51]} 19. Qf3 {[%clk 0:01:58]}  Qxf2 {[%clk 0:01:48]} 20. Qh5 {[%clk 0:01:57]}  Qg3+ {[%clk 0:01:39]} 21. Kh1 {[%clk 0:01:56]}  Qxe5 {[%clk 0:01:36]} 22. Qxf7 {[%clk 0:01:49]}  Nf2# {[%clk 0:01:34]} 0-1


[Site "https://www.chess.com"]

[Event "Titled Tuesday Blitz March 29 Late 2022"]
[White "Caruana, Fabiano"]
[Black "Dubov, Daniil"]
[WhiteFideId "2020009"]
[BlackFideId "24126055"]
[WhiteElo "2744"]
[BlackElo "2791"]
[Result "1-0"]
[Round "06"]
[TimeControl "180+1"]
[Date "2022.03.29"]
[WhiteClock "0:00:22"]
[BlackClock "0:00:13"]

1. d4 {[%clk 0:03:00]}  Nf6 {[%clk 0:02:57]} 2. c4 {[%clk 0:03:01]}  c5 {[%clk 0:02:56]} 3. d5 {[%clk 0:03:00]}  b5 {[%clk 0:02:55]} 4. Qc2 {[%clk 0:02:57]}  b4 {[%clk 0:02:54]} 5. e4 {[%clk 0:02:57]}  d6 {[%clk 0:02:54]} 6. Bd3 {[%clk 0:02:57]}  g6 {[%clk 0:02:54]} 7. Nf3 {[%clk 0:02:57]}  Bg7 {[%clk 0:02:54]} 8. O-O {[%clk 0:02:58]}  O-O {[%clk 0:02:55]} 9. h3 {[%clk 0:02:58]}  e6 {[%clk 0:02:53]} 10. Nbd2 {[%clk 0:02:58]}  exd5 {[%clk 0:02:51]} 11. cxd5 {[%clk 0:02:57]}  Nbd7 {[%clk 0:02:51]} 12. Nc4 {[%clk 0:02:56]}  Nb6 {[%clk 0:02:51]} 13. Re1 {[%clk 0:02:48]}  Ba6 {[%clk 0:02:47]} 14. Bf4 {[%clk 0:02:41]}  Bxc4 {[%clk 0:02:45]} 15. Bxc4 {[%clk 0:02:42]}  Nxc4 {[%clk 0:02:45]} 16. Qxc4 {[%clk 0:02:43]}  Re8 {[%clk 0:02:43]} 17. Rad1 {[%clk 0:02:41]}  Nd7 {[%clk 0:02:25]} 18. b3 {[%clk 0:02:28]}  Qc7 {[%clk 0:02:16]} 19. Qa6 {[%clk 0:02:25]}  Qb6 {[%clk 0:01:55]} 20. Qd3 {[%clk 0:02:07]}  Ne5 {[%clk 0:01:45]} 21. Bxe5 {[%clk 0:02:07]}  Bxe5 {[%clk 0:01:46]} 22. Nd2 {[%clk 0:02:05]}  Qc7 {[%clk 0:01:39]} 23. Nc4 {[%clk 0:02:05]}  Bd4 {[%clk 0:01:39]} 24. Qg3 {[%clk 0:02:02]}  Rad8 {[%clk 0:01:36]} 25. Kh1 {[%clk 0:02:02]}  Re7 {[%clk 0:01:13]} 26. f4 {[%clk 0:01:58]}  Qd7 {[%clk 0:01:13]} 27. Qf3 {[%clk 0:01:36]}  Rde8 {[%clk 0:01:12]} 28. Re2 {[%clk 0:01:29]}  Bc3 {[%clk 0:01:05]} 29. a4 {[%clk 0:01:21]}  f5 {[%clk 0:01:01]} 30. e5 {[%clk 0:01:21]}  dxe5 {[%clk 0:01:00]} 31. fxe5 {[%clk 0:01:15]}  Bxe5 {[%clk 0:00:54]} 32. d6 {[%clk 0:01:13]}  Re6 {[%clk 0:00:53]} 33. Qd5 {[%clk 0:00:46]}  Bc3 {[%clk 0:00:49]} 34. Rxe6 {[%clk 0:00:33]}  Rxe6 {[%clk 0:00:50]} 35. Qxc5 {[%clk 0:00:33]}  Kf7 {[%clk 0:00:26]} 36. Qc7 {[%clk 0:00:31]}  Ke8 {[%clk 0:00:25]} 37. a5 {[%clk 0:00:26]}  h5 {[%clk 0:00:24]} 38. a6 {[%clk 0:00:26]}  h4 {[%clk 0:00:24]} 39. Nb6 {[%clk 0:00:24]}  Qd8 {[%clk 0:00:13]} 40. d7+ {[%clk 0:00:22]} 1-0


[Site "https://www.chess.com"]

[Event "Titled Tuesday Blitz March 29 Late 2022"]
[White "Chernobay, Artem"]
[Black "Melaugh, Shane"]
[WhiteFideId "4167406"]
[BlackFideId "2509580"]
[WhiteElo "2473"]
[BlackElo "2014"]
[Result "1-0"]
[Round "06"]
[TimeControl "180+1"]
[Date "2022.03.30"]
[WhiteClock "0:01:18"]
[BlackClock "0:01:18"]

1. e4 {[%clk 0:03:00]}  e6 {[%clk 0:02:59]} 2. d4 {[%clk 0:03:00]}  d5 {[%clk 0:03:00]} 3. Nc3 {[%clk 0:03:01]}  Nf6 {[%clk 0:02:59]} 4. Bg5 {[%clk 0:03:00]}  dxe4 {[%clk 0:02:59]} 5. Nxe4 {[%clk 0:02:59]}  Nbd7 {[%clk 0:02:59]} 6. Nf3 {[%clk 0:02:58]}  Be7 {[%clk 0:02:59]} 7. Nxf6+ {[%clk 0:02:43]}  Nxf6 {[%clk 0:02:56]} 8. Bd3 {[%clk 0:02:42]}  O-O {[%clk 0:02:55]} 9. Qe2 {[%clk 0:02:41]}  h6 {[%clk 0:02:49]} 10. h4 {[%clk 0:02:38]}  c5 {[%clk 0:02:48]} 11. O-O-O {[%clk 0:02:27]}  Qd5 {[%clk 0:02:08]} 12. c4 {[%clk 0:02:15]}  Qc6 {[%clk 0:02:08]} 13. Ne5 {[%clk 0:02:09]}  Qd6 {[%clk 0:01:53]} 14. f4 {[%clk 0:01:51]}  cxd4 {[%clk 0:01:51]} 15. g4 {[%clk 0:01:44]}  Nh7 {[%clk 0:01:30]} 16. Bxe7 {[%clk 0:01:27]}  Qxe7 {[%clk 0:01:31]} 17. g5 {[%clk 0:01:28]}  f6 {[%clk 0:01:22]} 18. Ng6 {[%clk 0:01:22]}  Qc7 {[%clk 0:01:18]} 19. gxh6 {[%clk 0:01:19]}  Qxf4+ {[%clk 0:01:18]} 20. Nxf4 {[%clk 0:01:18]} 1-0


[Site "https://www.chess.com"]

[Event "Titled Tuesday Blitz March 29 Late 2022"]
[White "De La Colina, Nicolas"]
[Black "Fathy, Elameir"]
[WhiteFideId "30946921"]
[BlackFideId "10600396"]
[WhiteElo "2046"]
[BlackElo "2311"]
[Result "0-1"]
[Round "06"]
[TimeControl "180+1"]
[Date "2022.03.30"]
[WhiteClock "0:00:01"]
[BlackClock "0:00:07"]

1. d4 {[%clk 0:02:59]}  d5 {[%clk 0:02:59]} 2. Bf4 {[%clk 0:02:58]}  c5 {[%clk 0:02:59]} 3. e3 {[%clk 0:02:58]}  Nc6 {[%clk 0:02:59]} 4. c3 {[%clk 0:02:57]}  Bf5 {[%clk 0:02:58]} 5. Nd2 {[%clk 0:02:55]}  e6 {[%clk 0:02:57]} 6. Ngf3 {[%clk 0:02:54]}  Qb6 {[%clk 0:02:52]} 7. Qc1 {[%clk 0:02:26]}  Rc8 {[%clk 0:02:49]} 8. Be2 {[%clk 0:02:22]}  Nf6 {[%clk 0:02:48]} 9. O-O {[%clk 0:02:06]}  Be7 {[%clk 0:02:48]} 10. b3 {[%clk 0:02:00]}  O-O {[%clk 0:02:43]} 11. Qb2 {[%clk 0:01:59]}  Nh5 {[%clk 0:02:38]} 12. Be5 {[%clk 0:01:51]}  f6 {[%clk 0:02:31]} 13. Bg3 {[%clk 0:01:47]}  Nxg3 {[%clk 0:02:31]} 14. hxg3 {[%clk 0:01:48]}  cxd4 {[%clk 0:02:19]} 15. exd4 {[%clk 0:01:44]}  Rfe8 {[%clk 0:02:14]} 16. Rfe1 {[%clk 0:01:42]}  Bg6 {[%clk 0:02:11]} 17. c4 {[%clk 0:01:30]}  Qa5 {[%clk 0:01:43]} 18. a3 {[%clk 0:01:26]}  Qc7 {[%clk 0:01:35]} 19. Rac1 {[%clk 0:01:22]}  Qd7 {[%clk 0:01:26]} 20. c5 {[%clk 0:01:10]}  Qc7 {[%clk 0:00:54]} 21. b4 {[%clk 0:00:39]}  e5 {[%clk 0:00:54]} 22. Bb5 {[%clk 0:00:39]}  e4 {[%clk 0:00:31]} 23. Nh4 {[%clk 0:00:36]}  a6 {[%clk 0:00:29]} 24. Bf1 {[%clk 0:00:22]}  f5 {[%clk 0:00:29]} 25. Nxg6 {[%clk 0:00:19]}  hxg6 {[%clk 0:00:30]} 26. Qa2 {[%clk 0:00:20]}  Rcd8 {[%clk 0:00:28]} 27. Qb3 {[%clk 0:00:16]}  Nxd4 {[%clk 0:00:28]} 28. Qb2 {[%clk 0:00:13]}  Bf6 {[%clk 0:00:28]} 29. Qb1 {[%clk 0:00:11]}  f4 {[%clk 0:00:28]} 30. Nb3 {[%clk 0:00:08]}  fxg3 {[%clk 0:00:26]} 31. fxg3 {[%clk 0:00:04]}  Qxg3 {[%clk 0:00:24]} 32. Nd2 {[%clk 0:00:03]}  e3 {[%clk 0:00:17]} 33. Qd3 {[%clk 0:00:02]}  Qf2+ {[%clk 0:00:16]} 34. Kh1 {[%clk 0:00:02]}  Qh4+ {[%clk 0:00:13]} 35. Kg1 {[%clk 0:00:02]}  exd2 {[%clk 0:00:14]} 36. Qxd2 {[%clk 0:00:03]}  Nf5 {[%clk 0:00:09]} 37. Red1 {[%clk 0:00:02]}  Bd4+ {[%clk 0:00:08]} 38. Qxd4 {[%clk 0:00:01]}  Nxd4 {[%clk 0:00:09]} 39. Bd3 {[%clk 0:00:01]}  Ne2+ {[%clk 0:00:09]} 40. Kf1 {[%clk 0:00:01]}  Qh1+ {[%clk 0:00:07]} 41. Kf2 {[%clk 0:00:01]}  Qh4+ {[%clk 0:00:08]} 42. Kf1 {[%clk 0:00:01]}  Ng3+ {[%clk 0:00:08]} 43. Kg1 {[%clk 0:00:01]}  Ne4 {[%clk 0:00:07]} 44. Kf1 {[%clk 0:00:01]}  Qf2# {[%clk 0:00:07]} 0-1


[Site "https://www.chess.com"]

[Event "Titled Tuesday Blitz March 29 Late 2022"]
[White "Dimakiling, Oliver"]
[Black "Hnydiuk, Aleksander"]
[WhiteFideId "5202248"]
[BlackFideId "1109057"]
[WhiteElo "2426"]
[BlackElo "2374"]
[Result "0-1"]
[Round "06"]
[TimeControl "180+1"]
[Date "2022.03.29"]
[WhiteClock "0:00:11"]
[BlackClock "0:00:30"]

1. e4 {[%clk 0:03:00]}  Nf6 {[%clk 0:03:00]} 2. d3 {[%clk 0:03:00]}  e5 {[%clk 0:02:59]} 3. Nf3 {[%clk 0:02:59]}  Nc6 {[%clk 0:02:58]} 4. Nbd2 {[%clk 0:02:56]}  d5 {[%clk 0:02:58]} 5. g3 {[%clk 0:02:56]}  Bc5 {[%clk 0:02:58]} 6. Bg2 {[%clk 0:02:56]}  O-O {[%clk 0:02:58]} 7. O-O {[%clk 0:02:55]}  Re8 {[%clk 0:02:58]} 8. h3 {[%clk 0:02:55]}  h6 {[%clk 0:02:58]} 9. a4 {[%clk 0:02:53]}  a5 {[%clk 0:02:57]} 10. c3 {[%clk 0:02:53]}  b6 {[%clk 0:02:57]} 11. Re1 {[%clk 0:02:50]}  Ba6 {[%clk 0:02:55]} 12. exd5 {[%clk 0:02:44]}  Nxd5 {[%clk 0:02:53]} 13. Ne4 {[%clk 0:02:27]}  Bf8 {[%clk 0:02:52]} 14. Nh4 {[%clk 0:02:24]}  Qd7 {[%clk 0:02:50]} 15. Qf3 {[%clk 0:02:22]}  Rad8 {[%clk 0:02:42]} 16. Nf5 {[%clk 0:02:17]}  Nce7 {[%clk 0:02:35]} 17. Nxh6+ {[%clk 0:01:50]}  gxh6 {[%clk 0:02:35]} 18. c4 {[%clk 0:01:50]}  f5 {[%clk 0:02:20]} 19. cxd5 {[%clk 0:01:47]}  fxe4 {[%clk 0:02:20]} 20. dxe4 {[%clk 0:01:47]}  Ng6 {[%clk 0:02:12]} 21. Qh5 {[%clk 0:01:46]}  Qg7 {[%clk 0:02:03]} 22. Be3 {[%clk 0:01:45]}  Bb4 {[%clk 0:02:03]} 23. Rec1 {[%clk 0:01:44]}  Kh7 {[%clk 0:01:53]} 24. Rc6 {[%clk 0:01:37]}  Bd6 {[%clk 0:01:52]} 25. Rac1 {[%clk 0:01:30]}  Re7 {[%clk 0:01:51]} 26. Bg5 {[%clk 0:01:27]}  Rde8 {[%clk 0:01:44]} 27. h4 {[%clk 0:01:17]}  Rf7 {[%clk 0:01:36]} 28. Bh3 {[%clk 0:01:15]}  Ne7 {[%clk 0:01:23]} 29. Rxc7 {[%clk 0:00:55]}  Bxc7 {[%clk 0:01:20]} 30. Rxc7 {[%clk 0:00:55]}  Qg6 {[%clk 0:01:01]} 31. Qxg6+ {[%clk 0:00:47]}  Kxg6 {[%clk 0:01:01]} 32. Bd7 {[%clk 0:00:47]}  Rd8 {[%clk 0:00:51]} 33. Be3 {[%clk 0:00:46]}  Nxd5 {[%clk 0:00:41]} 34. Bf5+ {[%clk 0:00:27]}  Rxf5 {[%clk 0:00:41]} 35. exf5+ {[%clk 0:00:27]}  Kxf5 {[%clk 0:00:42]} 36. Ra7 {[%clk 0:00:19]}  Nxe3 {[%clk 0:00:42]} 37. Rxa6 {[%clk 0:00:18]}  Rd1+ {[%clk 0:00:41]} 38. Kh2 {[%clk 0:00:18]}  Ng4+ {[%clk 0:00:41]} 39. Kg2 {[%clk 0:00:18]}  Rd2 {[%clk 0:00:40]} 40. Rxb6 {[%clk 0:00:19]}  Rxf2+ {[%clk 0:00:40]} 41. Kg1 {[%clk 0:00:19]}  Rc2 {[%clk 0:00:38]} 42. b4 {[%clk 0:00:16]}  axb4 {[%clk 0:00:36]} 43. Rxb4 {[%clk 0:00:16]}  Ra2 {[%clk 0:00:37]} 44. Kf1 {[%clk 0:00:11]}  e4 {[%clk 0:00:36]} 45. Rb5+ {[%clk 0:00:11]}  Ne5 {[%clk 0:00:36]} 46. a5 {[%clk 0:00:12]}  e3 {[%clk 0:00:34]} 47. Rb4 {[%clk 0:00:11]}  e2+ {[%clk 0:00:30]} 0-1


[Site "https://www.chess.com"]